fUST/lending_fUST_20260202
["ID","MTS","AMOUNT","RATE_DAILY","PERIOD"]
[404243438,1769995846755,-151.0,0.00075435,120]
[404243441,1769995846766,-151.0,0.00075435,120]
[404243443,1769995846776,-151.0,0.00075435,120]
[404243445,1769995846786,-151.0,0.00075435,120]
[404243447,1769995846795,-151.0,0.00075435,120]
[404243449,1769995846804,-151.0,0.00075435,120]
[404243451,1769995846813,-225.005117,0.00075435,120]
[404243453,1769995846822,-225.005117,0.00075435,120]
[404243455,1769995846834,-225.005117,0.00075435,120]
[404243457,1769995846843,-225.005117,0.00075435,120]
[404243459,1769995846852,-151.0,0.00075435,120]
[404243461,1769995846861,-621.671218,0.00075435,120]
[404243463,1769995846871,-621.671218,0.00075435,120]
[404243465,1769995846880,-151.0,0.00075435,120]
[404243467,1769995846889,-621.671218,0.00075435,120]
[404243469,1769995846898,-621.671218,0.00075435,120]
[404243471,1769995846908,-151.0,0.00075435,120]
[404243473,1769995846916,-249.206494,0.00075435,120]
[404243475,1769995846925,-249.206494,0.00075435,120]
[404243477,1769995846935,-249.206494,0.00075435,120]
[404243479,1769995846944,-249.206494,0.00075435,120]
[404243481,1769995846953,-151.0,0.00075435,120]
[404243483,1769995846962,-151.0,0.00075435,120]
[404243485,1769995846971,-151.0,0.00075435,120]
[404243487,1769995846980,-172.637552,0.00075435,120]
[404243489,1769995846989,-151.0,0.00075435,120]
[404243491,1769995846998,-151.0,0.00075435,120]
[404243493,1769995847009,-151.0,0.00075435,60]
[404243495,1769995847018,-190.644516,0.00075435,10]
[404243497,1769995847027,-190.644516,0.00075435,10]
[404243499,1769995847036,-190.644516,0.00075435,10]
[404243501,1769995847045,-190.644516,0.00075435,10]
[404243503,1769995847055,-151.0,0.00075435,120]
[404243505,1769995847063,-151.0,0.00075435,120]
[404243507,1769995847072,-151.0,0.00075435,120]
[404243509,1769995847084,-151.0,0.00075435,120]
[404243511,1769995847093,-151.0,0.00075435,120]
[404243513,1769995847103,-287.897498,0.00075435,120]
[404243515,1769995847112,-151.0,0.00075435,120]
[404243517,1769995847122,-174.798799,0.00075435,120]
[404243519,1769995847131,-174.798799,0.00075435,120]
[404243521,1769995847141,-151.0,0.00075435,120]
[404243523,1769995847151,-174.798799,0.00075435,120]
[404243525,1769995847160,-151.0,0.00075435,120]
[404243527,1769995847169,-174.798799,0.00075435,120]
[404243529,1769995847178,-216.493624,0.00075435,120]
[404243531,1769995847187,-151.0,0.00075435,120]
[404243533,1769995847196,-151.0,0.00075435,120]
[404243535,1769995847205,-151.0,0.00075435,120]
[404243537,1769995847215,-151.0,0.00075435,60]
[404243540,1769995847225,-151.0,0.00075435,120]
[404243542,1769995847235,-835.283825,0.00075435,120]
[404243544,1769995847244,-771.216786,0.00075435,120]
[404243546,1769995847254,-771.216786,0.00075435,120]
[404243548,1769995847263,-771.216786,0.00075435,120]
[404243550,1769995847273,-771.216786,0.00075435,120]
[404243552,1769995847282,-835.283825,0.00075435,120]
[404243554,1769995847291,-835.283825,0.00075435,120]
[404243556,1769995847301,-835.283825,0.00075435,120]
[404243558,1769995847310,-151.0,0.00075444,120]
[404243560,1769995847319,-151.0,0.00075444,120]
[404243561,1769995847331,-151.0,0.00075444,120]
[404243564,1769995847341,-11887.37257059,0.00075444,120]
[404243566,1769995847351,-600.0,0.00075479,120]
[404243568,1769995847360,-203.0,0.000758,120]
[404243570,1769995847369,-1000.0,0.000759,120]
[404243572,1769995847378,-500.0,0.00076,120]
[404243574,1769995847387,-203.0,0.000762,120]
[404243576,1769995847399,-203.0,0.000766,120]
[404243578,1769995847409,-500.0,0.00077,120]
[404243580,1769995847418,-253.0,0.00077,120]
[404243582,1769995847427,-500.0,0.00078,120]
[404243584,1769995847436,-575.0,0.00079,120]
[404243587,1769995847456,-514.1,0.00079,30]
[404243589,1769995847466,-740.74221401,0.00079349,2]
[404243591,1769995847476,-4184.9217874,0.0007999,7]
[404243593,1769995847485,-681.58396702,0.0008,50]
[404243595,1769995847495,-500.0,0.0008,60]
[404243597,1769995847504,-200.0,0.0008,120]
[404243600,1769995847513,-1000.0,0.0008,120]
[404243602,1769995847522,-1998.98693283,0.0008,120]
[404243604,1769995847532,-2000.0,0.0008,120]
[404243606,1769995847541,-197.0,0.0008,120]
[404243608,1769995847550,-740.74221401,0.0008,7]
[404243610,1769995847559,-1753.44384961,0.0008188,120]
[404243612,1769995847569,-1000.0,0.000819,120]
[404243614,1769995847579,-200.0,0.00082,120]
[404243616,1769995847588,-393.24,0.00082191,2]
[404243618,1769995847598,-296.83043011,0.00082191,120]
[404243620,1769995847607,-602.10164551,0.00082191,120]
[404243622,1769995847617,-720.0,0.00083027,120]
[404243624,1769995847626,-200.0,0.00084,120]
[404243626,1769995847636,-150.04701162,0.00084657,2]
[404243628,1769995847645,-1998.98693283,0.00085,120]
[404243630,1769995847654,-514.1,0.000865,60]
[404243632,1769995847663,-1915.51367674,0.000878,120]
[404243634,1769995847673,-1000.0,0.000879,120]
[404243636,1769995847682,-151.0,0.000879,120]
[404243638,1769995847691,-151.0,0.000879,120]
[404243640,1769995847700,-162.179688,0.000879,120]
[404243642,1769995847709,-162.179688,0.000879,120]
[404243645,1769995847720,-162.179688,0.000879,120]
[404243647,1769995847731,-151.0,0.000879,120]
[404243649,1769995847740,-162.179688,0.000879,120]
[404243651,1769995847750,-151.0,0.000879,120]
[404243653,1769995847759,-151.0,0.000879,120]
[404243655,1769995847768,-468.274566,0.000879,120]
[404243657,1769995847777,-468.274566,0.000879,120]
[404243659,1769995847786,-468.274566,0.000879,120]
[404243661,1769995847795,-468.274566,0.000879,120]
[404243663,1769995847804,-369.142126,0.000879,120]
[404243665,1769995847813,-369.142126,0.000879,120]
[404243667,1769995847822,-369.142126,0.000879,120]
[404243669,1769995847834,-369.142126,0.000879,120]
[404243671,1769995847844,-151.0,0.000879,120]
[404243673,1769995847854,-151.0,0.000879,120]
[404243675,1769995847863,-188.58053,0.000879,120]
[404243677,1769995847872,-176.811524,0.000879,120]
[404243679,1769995847881,-151.0,0.000879,120]
[404243681,1769995847891,-151.0,0.000879,120]
[404243683,1769995847900,-151.0,0.000879,120]
[404243685,1769995847909,-151.0,0.000879,120]
[404243687,1769995847918,-225.005117,0.000879,120]
[404243689,1769995847928,-225.005117,0.000879,120]
[404243691,1769995847937,-225.005117,0.000879,120]
[404243694,1769995847946,-225.005117,0.000879,120]
[404243695,1769995847955,-151.0,0.000879,120]
[404243697,1769995847964,-621.671218,0.000879,120]
[404243700,1769995847974,-621.671218,0.000879,120]
[404243701,1769995847983,-151.0,0.000879,120]
[404243704,1769995847992,-621.671218,0.000879,120]
[404243705,1769995848001,-621.671218,0.000879,120]
[404243707,1769995848010,-151.0,0.000879,120]
[404243709,1769995848019,-249.206494,0.000879,120]
[404243711,1769995848028,-249.206494,0.000879,120]
[404243713,1769995848038,-249.206494,0.000879,120]
[404243715,1769995848047,-249.206494,0.000879,120]
[404243717,1769995848056,-151.0,0.000879,120]
[404243720,1769995848066,-151.0,0.000879,120]
[404243722,1769995848075,-151.0,0.000879,120]
[404243723,1769995848085,-151.0,0.000879,120]
[404243725,1769995848094,-151.0,0.000879,120]
[404243728,1769995848103,-190.644516,0.000879,10]
[404243730,1769995848115,-190.644516,0.000879,10]
[404243742,1769995848125,-190.644516,0.000879,10]
[404243745,1769995848232,-190.644516,0.000879,10]
[404243747,1769995848241,-151.0,0.000879,120]
[404243749,1769995848251,-151.0,0.000879,120]
[404243751,1769995848260,-151.0,0.000879,120]
[404243753,1769995848271,-151.0,0.000879,120]
[404243755,1769995848281,-174.798799,0.000879,120]
[404243757,1769995848290,-174.798799,0.000879,120]
[404243759,1769995848299,-151.0,0.000879,120]
[404243761,1769995848309,-174.798799,0.000879,120]
[404243763,1769995848319,-151.0,0.000879,120]
[404243765,1769995848331,-174.798799,0.000879,120]
[404243767,1769995848342,-151.0,0.000879,120]
[404243769,1769995848351,-151.054102,0.000879,120]
[404243770,1769995848360,-151.0,0.000879,120]
[404243773,1769995848370,-151.0,0.000879,120]
[404243775,1769995848378,-835.283825,0.000879,120]
[404243777,1769995848387,-771.216786,0.000879,120]
[404243778,1769995848397,-771.216786,0.000879,120]
[404243781,1769995848406,-771.216786,0.000879,120]
[404243783,1769995848415,-771.216786,0.000879,120]
[404243784,1769995848424,-835.283825,0.000879,120]
[404243787,1769995848433,-835.283825,0.000879,120]
[404243789,1769995848442,-835.283825,0.000879,120]
[404243791,1769995848451,-960.50098701,0.00089,120]
[404243792,1769995848461,-200.0,0.00089572,120]
[404243795,1769995848470,-200.0,0.00089572,120]
[404243797,1769995848479,-200.0,0.00089572,120]
[404243799,1769995848488,-200.0,0.0008985,120]
[404243801,1769995848497,-200.0,0.0008985,120]
[404243803,1769995848506,-200.0,0.0008985,120]
[404243805,1769995848515,-1000.0,0.0009,120]
[404243807,1769995848524,-1998.98693283,0.0009,120]
[404243809,1769995848533,-2000.0,0.0009,120]
[404243811,1769995848543,-864.0,0.0009133,120]
[404243813,1769995848552,-200.0,0.00092,120]
[404243815,1769995848561,-200.0,0.00094,120]
[404243817,1769995848569,-6151.48618555,0.0009488,60]
[404243819,1769995848582,-1998.98693283,0.00095,120]
[404243821,1769995848592,-151.0,0.00095099,120]
[404243823,1769995848603,-151.0,0.00095099,120]
[404243825,1769995848612,-261.367208,0.00095099,120]
[404243827,1769995848621,-150.04701162,0.00096506,2]
[404243829,1769995848631,-6068.37460767,0.000975,30]
[404243831,1769995848639,-185.6050702,0.00097534,60]
[404243833,1769995848649,-185.6050702,0.00097534,60]
[404243835,1769995848658,-185.3334475,0.00097534,60]
[404243836,1769995848667,-4184.9217874,0.0009789,13]
[404243837,1769995848677,-1000.0,0.000979,120]
[404243838,1769995848686,-5000.0,0.00099,120]
[404243839,1769995848695,-423.99,0.00099904,120]
[404243840,1769995848704,-151.0,0.0009999,120]
[404243841,1769995848713,-162.179688,0.0009999,120]
[404243842,1769995848721,-162.179688,0.0009999,120]
[404243843,1769995848731,-162.179688,0.0009999,120]
[404243844,1769995848740,-151.0,0.0009999,120]
[404243845,1769995848749,-162.179688,0.0009999,120]
[404243846,1769995848759,-151.0,0.0009999,120]
[404243847,1769995848771,-151.0,0.0009999,120]
[404243848,1769995848780,-468.274566,0.0009999,120]
[404243849,1769995848789,-468.274566,0.0009999,120]
[404243850,1769995848799,-468.274566,0.0009999,120]
[404243851,1769995848808,-468.274566,0.0009999,120]
[404243852,1769995848818,-369.142126,0.0009999,120]
[404243854,1769995848830,-369.142126,0.0009999,120]
[404243855,1769995848839,-369.142126,0.0009999,120]
[404243857,1769995848850,-369.142126,0.0009999,120]
[404243859,1769995848859,-151.0,0.0009999,120]
[404243861,1769995848868,-256.745476,0.0009999,120]
[404243862,1769995848879,-151.0,0.0009999,120]
[404243863,1769995848888,-151.0,0.0009999,120]
[404243864,1769995848897,-151.0,0.0009999,120]
[404243865,1769995848907,-266.479841,0.0009999,120]
[404243866,1769995848916,-225.005117,0.0009999,120]
[404243867,1769995848925,-225.005117,0.0009999,120]
[404243868,1769995848935,-225.005117,0.0009999,120]
[404243869,1769995848944,-225.005117,0.0009999,120]
[404243870,1769995848953,-291.219433,0.0009999,120]
[404243871,1769995848963,-621.671218,0.0009999,120]
[404243872,1769995848972,-621.671218,0.0009999,120]
[404243873,1769995848981,-170.4417,0.0009999,120]
[404243874,1769995848990,-621.671218,0.0009999,120]
[404243875,1769995849000,-621.671218,0.0009999,120]
[404243877,1769995849009,-261.846698,0.0009999,120]
[404243879,1769995849018,-249.206494,0.0009999,120]
[404243880,1769995849028,-249.206494,0.0009999,120]
[404243881,1769995849038,-249.206494,0.0009999,120]
[404243882,1769995849047,-249.206494,0.0009999,120]
[404243883,1769995849056,-151.0,0.0009999,120]
[404243885,1769995849065,-151.0,0.0009999,120]
[404243887,1769995849076,-151.0,0.0009999,120]
[404243889,1769995849085,-151.0,0.0009999,120]
[404243891,1769995849094,-151.0,0.0009999,120]
[404243892,1769995849103,-190.644516,0.0009999,10]
[404243893,1769995849112,-190.644516,0.0009999,10]
[404243894,1769995849121,-190.644516,0.0009999,10]
[404243896,1769995849131,-190.644516,0.0009999,10]
[404243898,1769995849140,-151.0,0.0009999,120]
[404243899,1769995849149,-151.0,0.0009999,120]
[404243900,1769995849158,-151.0,0.0009999,120]
[404243902,1769995849167,-151.0,0.0009999,120]
[404243904,1769995849176,-174.798799,0.0009999,120]
[404243906,1769995849185,-174.798799,0.0009999,120]
[404243908,1769995849194,-151.0,0.0009999,120]
[404243909,1769995849203,-174.798799,0.0009999,120]
[404243911,1769995849213,-151.0,0.0009999,120]
[404243913,1769995849222,-174.798799,0.0009999,120]
[404243915,1769995849231,-151.0,0.0009999,120]
[404243917,1769995849240,-228.803347,0.0009999,120]
[404243918,1769995849250,-271.81383713,0.0009999,120]
[404243919,1769995849261,-835.283825,0.0009999,120]
[404243920,1769995849273,-771.216786,0.0009999,120]
[404243921,1769995849283,-771.216786,0.0009999,120]
[404243922,1769995849293,-771.216786,0.0009999,120]
[404243923,1769995849304,-771.216786,0.0009999,120]
[404243924,1769995849314,-835.283825,0.0009999,120]
[404243925,1769995849323,-835.283825,0.0009999,120]
[404243926,1769995849335,-835.283825,0.0009999,120]
[404243927,1769995849344,-543.25804306,0.001,120]
[404243928,1769995849354,-200.0,0.001,60]
[404243929,1769995849363,-200.0,0.001,120]
[404243930,1769995849373,-1000.0,0.001,120]
[404243931,1769995849382,-893.29086051,0.001,120]
[404243932,1769995849393,-1500.0,0.001,2]
[404243933,1769995849408,-1998.98693283,0.001,120]
[404243934,1769995849420,-1500.0,0.001,2]
[404243935,1769995849429,-1000.0,0.00100463,120]
[404243936,1769995849439,-200.0,0.00107487,120]
[404243937,1769995849448,-200.0,0.00107487,120]
[404243938,1769995849458,-200.0,0.00107487,120]
[404243939,1769995849467,-200.0,0.0010782,120]
[404243940,1769995849476,-200.0,0.0010782,120]
[404243941,1769995849485,-200.0,0.0010782,120]
[404243942,1769995849494,-150.04701162,0.00108355,2]
[404243943,1769995849504,-393.24,0.00109589,2]
[404243944,1769995849514,-180.5,0.0011,120]
[404243945,1769995849524,-2000.0,0.00115,120]
[404243946,1769995849535,-352.69,0.00118468,14]
[404243947,1769995849545,-500.0,0.00119,120]
[404243948,1769995849554,-200.0,0.0012,120]
[404243949,1769995849563,-150.04701162,0.00120203,2]
[404243950,1769995849571,-514.1,0.00129,60]
[404243951,1769995849582,-150.04701162,0.00132052,2]
[404243952,1769995849591,-393.24,0.00136986,2]
[404243953,1769995849600,-399.294303,0.00136986,120]
[404243954,1769995849609,-2000.0,0.0014,120]
[404243955,1769995849618,-151.0,0.00144196,120]
[404243956,1769995849628,-151.0,0.00144196,120]
[404243957,1769995849637,-399.294303,0.00144196,120]
[404243958,1769995849646,-5000.0,0.00146,120]
[404243959,1769995849655,-487.9,0.00148,120]
[404243960,1769995849664,-455.0,0.0014949,120]
[404243961,1769995849675,-6239.06452756,0.0014999,30]
[404243962,1769995849691,-10500.62262204,0.0014999,30]
[404243963,1769995849700,-200.0,0.0015,120]
[404243964,1769995849709,-8987.6536431,0.0015,120]
[404243965,1769995850322,2843.0,0.00036875,120]
[404243966,1769995880491,500.0,0.00013699,2]
[404243967,1769995880611,61.46734546,0.00014247,2]
[404243969,1769995920905,500.0,0.00036875,120]
[404243970,1769995921128,166.19740237,0.00036875,120]
[404243971,1769995929319,321.68564957,0.00036875,120]
[404243972,1769995932016,168.00439325,0.00036875,120]
[404243973,1769995940542,219.0248953,0.00036875,120]
[404243974,1769995949897,272.91329607,0.00036875,120]
[404243975,1769995962834,179.5263339,0.00036875,120]
[404243976,1769995967707,173.40739984,0.00036875,120]
[404243977,1769995967865,170.10649875,0.00036875,120]
[404243978,1769995976701,256.03000723,0.00036875,120]
[404243979,1769995976749,428.49423373,0.00036875,120]
[404243980,1769995980440,150.84452235,0.00036875,120]
[404243981,1769995982416,299.93851926,0.00036875,120]
[404243982,1769995982473,152.43499766,0.00036875,120]
[404243983,1769995985959,354.01363328,0.00036875,120]
[404243984,1769995990721,500.0,0.00036875,120]
[404243985,1769995990985,500.0,0.00036875,120]
[404243986,1769995991223,500.0,0.00036875,120]
[404243987,1769995991476,214.64418191,0.00036875,120]
[404243988,1769995991787,275.09254039,0.00036875,120]
[404243989,1769995995464,381.24261104,0.00036875,120]
[404243990,1769995997343,159.45471577,0.00036875,120]
[404243991,1769995999903,150.1264465,0.00036875,120]
[404243992,1769996010374,165.28575179,0.00036875,120]
[404243993,1769996014498,168.58192438,0.00036875,120]
[404243994,1769996027375,243.06595932,0.00036875,60]
[404243997,1769996076154,500.0,0.00036875,120]
[404243998,1769996076457,573.9114643,0.00036875,120]
[404243999,1769996089846,500.0,0.00014,30]
[404244001,1769996097240,152.76062374,0.00036908,120]
[404244002,1769996123700,1336.099,0.00036908,120]
[404244003,1769996210647,155.72669285,0.00036908,120]
[404244004,1769996245829,161.5930146,0.00036908,120]
[404244005,1769996287347,155.0,0.00030136,120]
[404244006,1769996294117,152.63580574,0.00036908,120]
[404244007,1769996395974,163.63082055,0.00036911,120]
[404244016,1769996424681,156.06936878,0.00036911,120]
[404244029,1769996702205,3517.0,0.00030137,120]
[404244030,1769996743123,-220.53,0.000132,2]
[404244031,1769996743146,-150.0,0.00013218,2]
[404244032,1769996743169,-261.11192516,0.00013273,2]
[404244033,1769996743193,-500.0,0.00013273,2]
[404244034,1769996743216,-478.06969132,0.00013699,2]
[404244035,1769996743294,3517.1,0.00030137,120]
[404244036,1769996814275,-282.76481223,0.00013009,2]
[404244037,1769996816394,-516.97257785,0.00012879,2]
[404244038,1769996825107,-698.47956876,0.00012879,2]
[404244046,1769997005902,5000.0,0.00012443,2]
[404244047,1769997006483,-352.73587407,0.00012623,2]
[404244048,1769997010600,-300.0,0.00012623,2]
[404244049,1769997011233,188.6004813,0.00036881,120]
[404244050,1769997012899,-203.90234355,0.00012623,2]
[404244051,1769997015071,-157.39955595,0.00012623,2]
[404244052,1769997017253,-224.30937258,0.00012623,2]
[404244053,1769997021295,-1306.62542761,0.00012623,2]
[404244054,1769997027530,5000.0,0.00012443,2]
[404244088,1769997032084,-82.4297515,0.00012623,2]
[404244090,1769997032094,-3473.28788421,0.0001275,2]
[404244092,1769997032106,-150.0,0.00012944,2]
[404244093,1769997032115,-500.0,0.00013273,2]
[404244094,1769997032125,-302.79295802,0.00013673,2]
[404244095,1769997032134,-500.0,0.00013699,2]
[404244096,1769997032143,-1009.54693692,0.00013821,2]
[404244097,1769997032153,-1293.21521867,0.000141,5]
[404244098,1769997032163,-1000.0,0.00014247,2]
[404244101,1769997032175,-477.68566318,0.00014795,2]
[404244102,1769997032187,-1022.31433682,0.00014795,2]
[404244103,1769997032197,-177.0,0.00014944,2]
[404244104,1769997032206,-155.0,0.00015236,2]
[404244105,1769997032216,-155.0,0.00015341,2]
[404244106,1769997032225,-1112.54493378,0.00015342,2]
[404244145,1769997038258,-2192.23669969,0.00015189,2]
[404244148,1769997038269,-887.45506622,0.00015342,2]
[404244149,1769997038278,-357.16067671,0.00015889,2]
[404244152,1769997038290,-142.83932329,0.00015889,2]
[404244154,1769997038300,-140.48067671,0.00015889,2]
[404244348,1769997040422,-2e-08,0.00015889,2]
[404244881,1769997046353,-3521.26865349,0.00015731,2]
[404244882,1769997046365,-359.51932327,0.00015889,2]
[404244883,1769997046375,-500.0,0.00015889,2]
[404244884,1769997046384,-207.53824825,0.00015889,2]
[404244885,1769997046394,-304.48397918,0.00015889,2]
[404244886,1769997046403,-500.0,0.00015889,2]
[404244887,1769997046413,-500.0,0.00015889,2]
[404244888,1769997046422,-289.64851376,0.00015889,2]
[404244889,1769997046431,-419.82985796,0.00015889,2]
[404244890,1769997046440,-454.52671898,0.0001589,2]
[404244891,1769997046563,-447.54,0.0001589,2]
[404244892,1769997046574,-1597.93328102,0.0001589,2]
[404244893,1769997046583,-3000.0,0.00016438,2]
[404244894,1769997046597,-4788.4138513,0.00016898,2]
[404244895,1769997046606,-204.0,0.00016944,2]
[404244896,1769997046616,-434.92006769,0.00016986,2]
[404244897,1769997046628,-3065.07993231,0.00016986,2]
[404244898,1769997046638,-4000.0,0.00017534,2]
[404244899,1769997046647,-511.53887347,0.00018082,2]
[404244900,1769997046656,-231.0,0.00018944,2]
[404244901,1769997046665,-363.0,0.00020493,2]
[404244902,1769997046675,-258.0,0.00020944,2]
[404244903,1769997046687,-150.0,0.00021918,2]
[404244904,1769997046695,-300.0,0.00022466,2]
[404244905,1769997046704,-285.0,0.00022944,2]
[404244906,1769997046714,-300.90069924,0.00023014,2]
[404244907,1769997046723,-740.74221401,0.00023634,2]
[404244908,1769997046732,-219.00355137,0.00024092,2]
[404244909,1769997046742,-174.0900725,0.00024192,12]
[404244910,1769997046751,-312.0,0.00024944,2]
[404244911,1769997046760,-339.0,0.00026944,2]
[404244912,1769997046769,-366.0,0.00028944,2]
[404244913,1769997046778,-232.74,0.0002967,2]
[404244914,1769997046787,-179.68,0.00030267,25]
[404244915,1769997046797,-1421.3858,0.0003222,30]
[404244916,1769997046806,-153.81851178,0.000332,117]
[404244917,1769997046816,-187.75038369,0.00035,120]
[404244918,1769997046826,-157.51,0.00035014,120]
[404244919,1769997046835,-300.0,0.00035616,2]
[404244920,1769997046844,-300.0,0.00035616,2]
[404244921,1769997046853,-300.0,0.00035616,2]
[404244922,1769997046863,-281.35776762,0.00035616,2]
[404244923,1769997046872,-153.25124669,0.00036037,2]
[404244924,1769997046881,-153.04706629,0.00036311,2]
[404244925,1769997046890,-317.34,0.00036438,20]
[404244926,1769997046899,-484.77569618,0.00036699,15]
[404244927,1769997046908,-522.41997261,0.00036699,15]
[404244928,1769997046917,-278.95855226,0.00036699,15]
[404244929,1769997046926,-1003.002007,0.000367,22]
[404244930,1769997046935,-168.0,0.00036722,2]
[404244931,1769997046944,-168.0,0.00036813,2]
[404244932,1769997046955,-190.66719092,0.00036841,15]
[404244933,1769997046964,-155.0,0.00036908,20]
[404244934,1769997046974,-605.7441585,0.00036908,2]
[404244935,1769997046983,-605.7441585,0.00036908,2]
[404244936,1769997046991,-605.7441585,0.00036908,2]
[404244937,1769997047000,-237.0424818,0.00036908,2]
[404244938,1769997047010,-155.0,0.00036911,20]
[404244939,1769997047019,-317.34,0.00036986,22]
[404244940,1769997047028,-150.05136749,0.00037262,2]
[404244941,1769997047038,-161.46887459,0.000375,120]
[404244942,1769997047047,-317.34,0.00037534,24]
[404244943,1769997047057,-168.0,0.00037872,2]
[404244944,1769997047066,-317.34,0.00038082,26]
[404244945,1769997047076,-150.0,0.00038356,5]
[404244946,1769997047085,-168.0,0.00038612,2]
[404244947,1769997047095,-317.34,0.0003863,28]
[404244948,1769997047105,-161.46887459,0.000387,120]
[404244949,1769997047115,-250.0,0.00038904,5]
[404244950,1769997047124,-317.34,0.00039178,30]
[404244951,1769997047134,-350.0,0.00039452,5]
[404244952,1769997047143,-168.0,0.00039602,2]
[404244953,1769997047152,-317.34,0.00039726,32]
[404244954,1769997047161,-161.46887459,0.000398,120]
[404244955,1769997047171,-450.0,0.0004,5]
[404244956,1769997047180,-317.34,0.00040273,34]
[404244957,1769997047189,-550.0,0.00040548,5]
[404244958,1769997047199,-317.34,0.00040821,36]
[404244959,1769997047208,-204.93135129,0.00041096,2]
[404244960,1769997047217,-650.0,0.00041096,10]
[404244961,1769997047226,-317.34,0.00041369,38]
[404244962,1769997047236,-314.07405425,0.00041644,10]
[404244963,1769997047245,-317.34,0.00041917,40]
[404244964,1769997047254,-317.34,0.00042465,42]
[404244965,1769997047264,-317.34,0.00043013,44]
[404244966,1769997047283,-317.34,0.00043561,46]
[404244967,1769997047295,-1245.37301593,0.00043562,120]
[404244968,1769997047304,-317.34,0.00044109,48]
[404244969,1769997047314,-378.0963672,0.0004429,30]
[404244970,1769997047325,-317.34,0.00044657,50]
[404244971,1769997047336,-317.34,0.00045205,52]
[404244972,1769997047346,-317.34,0.00045753,54]
[404244973,1769997047355,-227.74054266,0.00046027,2]
[404244974,1769997047366,-317.34,0.00046301,56]
[404244975,1769997047500,-193.511897,0.00046301,60]
[404244976,1769997047511,-317.34,0.00046849,58]
[404244977,1769997047522,-317.34,0.00047397,60]
[404244978,1769997047531,-253.87,0.00047645,12]
[404244979,1769997047541,-317.34,0.00047945,62]
[404244980,1769997047550,-317.34,0.00048493,64]
[404244981,1769997047559,-377.44,0.00048741,12]
[404244982,1769997047568,-317.49920786,0.00049041,66]
[404244983,1769997047578,-322.44451768,0.00049315,120]
[404244984,1769997047590,-1041.66666667,0.00049315,120]
[404244985,1769997047600,-299.0,0.00049315,120]
[404244986,1769997047610,-299.0,0.00049315,120]
[404244987,1769997047619,-299.0,0.00049315,120]
[404244988,1769997047628,-299.0,0.00049315,120]
[404244989,1769997047638,-299.0,0.00049315,120]
[404244990,1769997047647,-299.0,0.00049315,120]
[404244991,1769997047656,-299.0,0.00049315,120]
[404244992,1769997047674,-299.0,0.00049315,120]
[404244993,1769997047692,-299.0,0.00049315,120]
[404244994,1769997047706,-299.0,0.00049315,120]
[404244995,1769997047717,-299.0,0.00049315,120]
[404244996,1769997047730,-299.0,0.00049315,120]
[404244997,1769997047742,-299.0,0.00049315,120]
[404244998,1769997047751,-299.0,0.00049315,120]
[404244999,1769997047763,-299.0,0.00049315,120]
[404245000,1769997047775,-299.0,0.00049315,120]